[Event "Titled Tuesday Blitz February 14 Late 2023"]
[White "Prieto Aranguren, Alain"]
[Black "Janaszak, Dawid"]
[WhiteFideId "2268906"]
[BlackFideId "1119206"]
[WhiteElo "2258"]
[BlackElo "2316"]
[Result "1-0"]
[Round "11"]
[TimeControl "180+2"]
[Date "2023.02.14"]
[WhiteClock "0:00:26"]
[BlackClock "0:00:15"]

1. e4 {[%clk 0:03:00]}  c5 {[%clk 0:02:59]} 2. Bc4 {[%clk 0:02:59]}  e6 {[%clk 0:02:58]} 3. Qf3 {[%clk 0:02:59]}  Nc6 {[%clk 0:02:57]} 4. d3 {[%clk 0:02:59]}  Ne5 {[%clk 0:02:57]} 5. Qg3 {[%clk 0:02:59]}  Nxc4 {[%clk 0:02:55]} 6. dxc4 {[%clk 0:02:59]}  Nf6 {[%clk 0:02:54]} 7. Nc3 {[%clk 0:02:58]}  d5 {[%clk 0:02:48]} 8. cxd5 {[%clk 0:02:25]}  exd5 {[%clk 0:02:47]} 9. Bg5 {[%clk 0:02:23]}  d4 {[%clk 0:02:38]} 10. Nd5 {[%clk 0:02:21]}  Be6 {[%clk 0:01:43]} 11. Nc7+ {[%clk 0:02:18]}  Kd7 {[%clk 0:01:44]} 12. Nxa8 {[%clk 0:02:17]}  Qxa8 {[%clk 0:01:44]} 13. Bxf6 {[%clk 0:02:02]}  gxf6 {[%clk 0:01:44]} 14. Nf3 {[%clk 0:02:00]}  Bh6 {[%clk 0:01:32]} 15. Qh4 {[%clk 0:01:48]}  Qf8 {[%clk 0:01:21]} 16. Qxf6 {[%clk 0:01:46]}  Bg7 {[%clk 0:01:21]} 17. Qh4 {[%clk 0:01:41]}  h5 {[%clk 0:01:20]} 18. O-O {[%clk 0:01:35]}  Rh6 {[%clk 0:01:11]} 19. c3 {[%clk 0:01:34]}  Rg6 {[%clk 0:01:11]} 20. cxd4 {[%clk 0:01:31]}  cxd4 {[%clk 0:01:11]} 21. Rfd1 {[%clk 0:01:28]}  Qb4 {[%clk 0:01:06]} 22. Qxh5 {[%clk 0:01:23]}  b6 {[%clk 0:00:49]} 23. Ne5+ {[%clk 0:01:19]}  Kd6 {[%clk 0:00:24]} 24. Nxg6 {[%clk 0:01:17]}  fxg6 {[%clk 0:00:25]} 25. Qxg6 {[%clk 0:01:12]}  Be5 {[%clk 0:00:25]} 26. Rac1 {[%clk 0:01:01]}  Qxb2 {[%clk 0:00:21]} 27. Qe8 {[%clk 0:00:59]}  Bd7 {[%clk 0:00:16]} 28. Qf8+ {[%clk 0:00:51]}  Ke6 {[%clk 0:00:15]} 29. f4 {[%clk 0:00:47]}  Bd6 {[%clk 0:00:15]} 30. f5+ {[%clk 0:00:37]}  Ke5 {[%clk 0:00:15]} 31. Qg7+ {[%clk 0:00:32]}  Kxe4 {[%clk 0:00:15]} 32. Qxd7 {[%clk 0:00:31]}  Bf4 {[%clk 0:00:15]} 33. Qe6+ {[%clk 0:00:28]}  Be5 {[%clk 0:00:15]} 34. Re1+ {[%clk 0:00:27]}  Kd3 {[%clk 0:00:15]} 35. Qxe5 {[%clk 0:00:26]} 1-0


[Site "https://www.chess.com"]

[Event "Titled Tuesday Blitz February 14 Late 2023"]
[White "Nunez V, Gustavo Eduardo"]
[Black "Lucassen, Mickey"]
[WhiteFideId "4403690"]
[BlackFideId "12919110"]
[WhiteElo "2212"]
[BlackElo "2023"]
[Result "0-1"]
[Round "11"]
[TimeControl "180+2"]
[Date "2023.02.14"]
[WhiteClock "0:00:09"]
[BlackClock "0:00:14"]

1. e4 {[%clk 0:01:56]}  c5 {[%clk 0:02:57]} 2. Nc3 {[%clk 0:01:56]}  Nc6 {[%clk 0:02:55]} 3. f4 {[%clk 0:01:56]}  g6 {[%clk 0:02:55]} 4. Nf3 {[%clk 0:01:56]}  Bg7 {[%clk 0:02:55]} 5. Bb5 {[%clk 0:01:57]}  e6 {[%clk 0:02:52]} 6. O-O {[%clk 0:01:56]}  Nd4 {[%clk 0:02:50]} 7. Nxd4 {[%clk 0:01:53]}  cxd4 {[%clk 0:02:49]} 8. Ne2 {[%clk 0:01:53]}  a6 {[%clk 0:02:43]} 9. Bd3 {[%clk 0:01:52]}  d6 {[%clk 0:02:41]} 10. Ng3 {[%clk 0:01:47]}  h5 {[%clk 0:02:33]} 11. f5 {[%clk 0:01:47]}  Qh4 {[%clk 0:02:21]} 12. fxg6 {[%clk 0:01:44]}  fxg6 {[%clk 0:02:21]} 13. e5 {[%clk 0:01:44]}  Bxe5 {[%clk 0:02:13]} 14. Bxg6+ {[%clk 0:01:44]}  Kd8 {[%clk 0:02:07]} 15. Qf3 {[%clk 0:01:32]}  Nf6 {[%clk 0:02:01]} 16. d3 {[%clk 0:01:31]}  Rg8 {[%clk 0:01:43]} 17. Bf7 {[%clk 0:01:19]}  Rg7 {[%clk 0:01:37]} 18. Bf4 {[%clk 0:01:09]}  Rxf7 {[%clk 0:00:53]} 19. Bxe5 {[%clk 0:01:04]}  dxe5 {[%clk 0:00:54]} 20. Nxh5 {[%clk 0:00:59]}  Ng4 {[%clk 0:00:51]} 21. Qh3 {[%clk 0:00:37]}  Rxf1+ {[%clk 0:00:48]} 22. Rxf1 {[%clk 0:00:37]}  Qxh3 {[%clk 0:00:48]} 23. gxh3 {[%clk 0:00:38]}  Ne3 {[%clk 0:00:47]} 24. Rf7 {[%clk 0:00:36]}  Bd7 {[%clk 0:00:38]} 25. Nf6 {[%clk 0:00:34]}  Be8 {[%clk 0:00:25]} 26. Rxb7 {[%clk 0:00:30]}  Rc8 {[%clk 0:00:25]} 27. c4 {[%clk 0:00:20]}  dxc3 {[%clk 0:00:23]} 28. bxc3 {[%clk 0:00:21]}  Bc6 {[%clk 0:00:16]} 29. Rg7 {[%clk 0:00:20]}  Rc7 {[%clk 0:00:16]} 30. Rg8+ {[%clk 0:00:18]}  Ke7 {[%clk 0:00:16]} 31. Rg7+ {[%clk 0:00:14]}  Kd6 {[%clk 0:00:17]} 32. Rg5 {[%clk 0:00:09]}  Rf7 {[%clk 0:00:14]} 33. Ng4 {[%clk 0:00:09]}  Rf1# {[%clk 0:00:14]} 0-1


[Site "https://www.chess.com"]

[Event "Titled Tuesday Blitz February 14 Late 2023"]
[White "Smith, Garrett L"]
[Black "Chor, Kevin"]
[WhiteFideId "2024829"]
[BlackFideId "2090740"]
[WhiteElo "2047"]
[BlackElo "1944"]
[Result "0-1"]
[Round "11"]
[TimeControl "180+2"]
[Date "2023.02.14"]
[WhiteClock "0:00:03"]
[BlackClock "0:00:06"]

1. e4 {[%clk 0:03:00]}  c5 {[%clk 0:02:59]} 2. a3 {[%clk 0:03:00]}  g6 {[%clk 0:02:59]} 3. b4 {[%clk 0:03:01]}  Bg7 {[%clk 0:02:58]} 4. Nc3 {[%clk 0:03:01]}  cxb4 {[%clk 0:02:44]} 5. axb4 {[%clk 0:03:01]}  Nc6 {[%clk 0:02:44]} 6. Rb1 {[%clk 0:03:01]}  e6 {[%clk 0:02:31]} 7. Nf3 {[%clk 0:02:56]}  d5 {[%clk 0:02:23]} 8. exd5 {[%clk 0:02:56]}  exd5 {[%clk 0:02:24]} 9. d4 {[%clk 0:02:51]}  Bg4 {[%clk 0:02:20]} 10. Be3 {[%clk 0:02:36]}  Nge7 {[%clk 0:02:09]} 11. b5 {[%clk 0:02:32]}  Bxf3 {[%clk 0:02:09]} 12. gxf3 {[%clk 0:02:28]}  Na5 {[%clk 0:02:09]} 13. Bd3 {[%clk 0:02:19]}  Qc7 {[%clk 0:01:58]} 14. Qd2 {[%clk 0:02:20]}  Nc4 {[%clk 0:01:56]} 15. Bxc4 {[%clk 0:02:18]}  Qxc4 {[%clk 0:01:56]} 16. Rb3 {[%clk 0:01:52]}  Nf5 {[%clk 0:01:38]} 17. Ne2 {[%clk 0:01:48]}  O-O {[%clk 0:01:35]} 18. Qd3 {[%clk 0:01:48]}  Qa4 {[%clk 0:01:32]} 19. O-O {[%clk 0:01:42]}  Qa5 {[%clk 0:01:15]} 20. Ng3 {[%clk 0:01:37]}  Nd6 {[%clk 0:01:08]} 21. Bd2 {[%clk 0:01:30]}  Qb6 {[%clk 0:01:09]} 22. Bb4 {[%clk 0:01:28]}  Rfe8 {[%clk 0:01:08]} 23. Bc5 {[%clk 0:01:24]}  Qd8 {[%clk 0:01:08]} 24. b6 {[%clk 0:01:22]}  a5 {[%clk 0:01:05]} 25. Ra1 {[%clk 0:01:16]}  Nc4 {[%clk 0:01:04]} 26. f4 {[%clk 0:01:08]}  h5 {[%clk 0:01:00]} 27. f5 {[%clk 0:01:04]}  h4 {[%clk 0:01:00]} 28. Ne2 {[%clk 0:00:56]}  Qg5+ {[%clk 0:00:59]} 29. Kh1 {[%clk 0:00:56]}  Qxf5 {[%clk 0:00:54]} 30. Qxf5 {[%clk 0:00:57]}  gxf5 {[%clk 0:00:55]} 31. Nc3 {[%clk 0:00:57]}  Red8 {[%clk 0:00:41]} 32. Rg1 {[%clk 0:00:47]}  a4 {[%clk 0:00:40]} 33. Rbb1 {[%clk 0:00:47]}  Nd2 {[%clk 0:00:36]} 34. Rbd1 {[%clk 0:00:44]}  Nf3 {[%clk 0:00:36]} 35. Rg2 {[%clk 0:00:42]}  a3 {[%clk 0:00:36]} 36. Ra1 {[%clk 0:00:37]}  Rdc8 {[%clk 0:00:31]} 37. Ra2 {[%clk 0:00:26]}  Kh7 {[%clk 0:00:27]} 38. Nxd5 {[%clk 0:00:23]}  Re8 {[%clk 0:00:22]} 39. Ra1 {[%clk 0:00:20]}  a2 {[%clk 0:00:17]} 40. Ne3 {[%clk 0:00:18]}  f4 {[%clk 0:00:15]} 41. Nf5 {[%clk 0:00:17]}  Re1+ {[%clk 0:00:10]} 42. Rxe1 {[%clk 0:00:17]}  Nxe1 {[%clk 0:00:11]} 43. Rxg7+ {[%clk 0:00:15]}  Kh8 {[%clk 0:00:11]} 44. Rg5 {[%clk 0:00:11]}  a1=Q {[%clk 0:00:10]} 45. Rh5+ {[%clk 0:00:11]}  Kg8 {[%clk 0:00:07]} 46. Rg5+ {[%clk 0:00:07]}  Kh7 {[%clk 0:00:07]} 47. Rh5+ {[%clk 0:00:03]}  Kg6 {[%clk 0:00:06]} 0-1


[Site "https://www.chess.com"]

[Event "Titled Tuesday Blitz February 14 Late 2023"]
[White "Hajiyev, Kanan"]
[Black "Miszler, Levente"]
[WhiteFideId "13404148"]
[BlackFideId "763276"]
[WhiteElo "2197"]
[BlackElo "2271"]
[Result "0-1"]
[Round "11"]
[TimeControl "180+2"]
[Date "2023.02.14"]
[WhiteClock "0:00:57"]
[BlackClock "0:01:42"]

1. d4 {[%clk 0:02:49]}  d5 {[%clk 0:02:57]} 2. Nf3 {[%clk 0:02:50]}  Nf6 {[%clk 0:02:56]} 3. c4 {[%clk 0:02:50]}  c6 {[%clk 0:02:54]} 4. cxd5 {[%clk 0:02:51]}  cxd5 {[%clk 0:02:55]} 5. Nc3 {[%clk 0:02:51]}  Nc6 {[%clk 0:02:55]} 6. Bg5 {[%clk 0:02:52]}  e6 {[%clk 0:02:53]} 7. e3 {[%clk 0:02:51]}  Be7 {[%clk 0:02:53]} 8. Bd3 {[%clk 0:02:51]}  h6 {[%clk 0:02:53]} 9. Bh4 {[%clk 0:02:50]}  O-O {[%clk 0:02:52]} 10. O-O {[%clk 0:02:50]}  Nd7 {[%clk 0:02:52]} 11. Bxe7 {[%clk 0:02:49]}  Qxe7 {[%clk 0:02:53]} 12. Rc1 {[%clk 0:02:49]}  a6 {[%clk 0:02:48]} 13. Bb1 {[%clk 0:02:48]}  f5 {[%clk 0:02:46]} 14. Na4 {[%clk 0:02:46]}  g5 {[%clk 0:02:46]} 15. Nc5 {[%clk 0:02:43]}  g4 {[%clk 0:02:45]} 16. Nxd7 {[%clk 0:02:25]}  Bxd7 {[%clk 0:02:44]} 17. Ne5 {[%clk 0:02:25]}  Nxe5 {[%clk 0:02:44]} 18. dxe5 {[%clk 0:02:26]}  Rac8 {[%clk 0:02:42]} 19. Qd4 {[%clk 0:02:25]}  Bb5 {[%clk 0:02:40]} 20. Rfd1 {[%clk 0:02:23]}  Qd7 {[%clk 0:02:36]} 21. Qf4 {[%clk 0:02:14]}  Kg7 {[%clk 0:02:35]} 22. b3 {[%clk 0:02:00]}  Rxc1 {[%clk 0:02:34]} 23. Rxc1 {[%clk 0:02:00]}  Rc8 {[%clk 0:02:34]} 24. Rd1 {[%clk 0:01:47]}  Qc7 {[%clk 0:02:32]} 25. h3 {[%clk 0:01:37]}  gxh3 {[%clk 0:02:25]} 26. g4 {[%clk 0:01:36]}  Be2 {[%clk 0:02:20]} 27. gxf5 {[%clk 0:01:22]}  Bxd1 {[%clk 0:02:14]} 28. f6+ {[%clk 0:01:23]}  Kf7 {[%clk 0:02:04]} 29. Qxh6 {[%clk 0:01:18]}  Rg8+ {[%clk 0:01:55]} 30. Kf1 {[%clk 0:01:10]}  Bc2 {[%clk 0:01:52]} 31. Bxc2 {[%clk 0:01:04]}  Qxc2 {[%clk 0:01:49]} 32. Qh5+ {[%clk 0:01:00]}  Qg6 {[%clk 0:01:47]} 33. Qxh3 {[%clk 0:00:57]}  Qg1+ {[%clk 0:01:46]} 34. Ke2 {[%clk 0:00:57]}  Qg4+ {[%clk 0:01:47]} 35. Qf3 {[%clk 0:00:58]}  Qxf3+ {[%clk 0:01:46]} 36. Kxf3 {[%clk 0:00:59]}  Rg5 {[%clk 0:01:43]} 37. e4 {[%clk 0:00:57]}  Rxe5 {[%clk 0:01:42]} 0-1


[Site "https://www.chess.com"]

[Event "Titled Tuesday Blitz February 14 Late 2023"]
[White "reevecanada"]
[Black "Carrasco Miranda, Andres"]
[BlackFideId "3405990"]
[WhiteElo "2466"]
[BlackElo "2240"]
[Result "0-1"]
[Round "11"]
[TimeControl "180+2"]
[Date "2023.02.14"]
[WhiteClock "0:00:28"]
[BlackClock "0:00:39"]

1. e3 {[%clk 0:03:00]}  g6 {[%clk 0:02:59]} 2. h3 {[%clk 0:03:00]}  Bg7 {[%clk 0:02:59]} 3. h4 {[%clk 0:03:00]}  h6 {[%clk 0:02:53]} 4. g4 {[%clk 0:02:59]}  d5 {[%clk 0:02:53]} 5. d4 {[%clk 0:02:58]}  c5 {[%clk 0:02:52]} 6. c3 {[%clk 0:02:57]}  Nc6 {[%clk 0:02:52]} 7. Bd3 {[%clk 0:02:56]}  e5 {[%clk 0:02:52]} 8. dxc5 {[%clk 0:02:54]}  Nf6 {[%clk 0:02:47]} 9. f3 {[%clk 0:02:51]}  e4 {[%clk 0:02:46]} 10. Be2 {[%clk 0:02:39]}  exf3 {[%clk 0:02:43]} 11. Bxf3 {[%clk 0:02:39]}  Ne4 {[%clk 0:02:41]} 12. Nd2 {[%clk 0:02:37]}  Nxc5 {[%clk 0:02:36]} 13. Nb3 {[%clk 0:02:36]}  Ne4 {[%clk 0:02:34]} 14. c4 {[%clk 0:02:36]}  Qc7 {[%clk 0:02:14]} 15. cxd5 {[%clk 0:02:30]}  Qg3+ {[%clk 0:02:12]} 16. Ke2 {[%clk 0:02:28]}  Ne5 {[%clk 0:01:29]} 17. Qf1 {[%clk 0:01:31]}  Bxg4 {[%clk 0:01:18]} 18. Nd4 {[%clk 0:01:28]}  Rc8 {[%clk 0:01:00]} 19. Bd2 {[%clk 0:01:14]}  Nxd2 {[%clk 0:00:56]} 20. Kxd2 {[%clk 0:01:13]}  Nc4+ {[%clk 0:00:52]} 21. Ke2 {[%clk 0:01:03]}  Bxd4 {[%clk 0:00:50]} 22. exd4 {[%clk 0:01:03]}  O-O {[%clk 0:00:51]} 23. Kd3 {[%clk 0:00:42]}  Nxb2+ {[%clk 0:00:42]} 24. Kd2 {[%clk 0:00:35]}  Rfe8 {[%clk 0:00:39]} 25. Bxg4 {[%clk 0:00:28]}  Qe3# {[%clk 0:00:39]} 0-1


[Site "https://www.chess.com"]

[Event "Titled Tuesday Blitz February 14 Late 2023"]
[White "Meunier-Pion, Jean"]
[Black "Lopez Perdomo, Juan David"]
[WhiteFideId "20685327"]
[BlackFideId "4405137"]
[WhiteElo "2215"]
[BlackElo "2029"]
[Result "1-0"]
[Round "11"]
[TimeControl "180+2"]
[Date "2023.02.14"]
[WhiteClock "0:00:05"]
[BlackClock "0:00:05"]

1. e4 {[%clk 0:03:00]}  e6 {[%clk 0:03:00]} 2. d4 {[%clk 0:03:00]}  d5 {[%clk 0:03:00]} 3. Nd2 {[%clk 0:03:01]}  Nf6 {[%clk 0:03:00]} 4. e5 {[%clk 0:03:01]}  Nfd7 {[%clk 0:03:01]} 5. c3 {[%clk 0:03:01]}  c5 {[%clk 0:03:01]} 6. f4 {[%clk 0:03:02]}  Nc6 {[%clk 0:03:02]} 7. Ndf3 {[%clk 0:03:02]}  Be7 {[%clk 0:02:59]} 8. Bd3 {[%clk 0:02:59]}  f5 {[%clk 0:02:57]} 9. Ne2 {[%clk 0:02:58]}  O-O {[%clk 0:02:57]} 10. O-O {[%clk 0:02:57]}  cxd4 {[%clk 0:02:50]} 11. cxd4 {[%clk 0:02:56]}  b6 {[%clk 0:02:51]} 12. Kh1 {[%clk 0:02:56]}  Nb4 {[%clk 0:02:51]} 13. Bb1 {[%clk 0:02:55]}  Ba6 {[%clk 0:02:52]} 14. a3 {[%clk 0:02:54]}  Nc6 {[%clk 0:02:49]} 15. Rg1 {[%clk 0:02:51]}  Na5 {[%clk 0:02:49]} 16. b4 {[%clk 0:02:43]}  Bxe2 {[%clk 0:02:21]} 17. Qxe2 {[%clk 0:02:42]}  Nb3 {[%clk 0:02:22]} 18. Ra2 {[%clk 0:02:42]}  Nxc1 {[%clk 0:02:18]} 19. Rxc1 {[%clk 0:02:43]}  Rc8 {[%clk 0:02:18]} 20. Rac2 {[%clk 0:02:41]}  Rxc2 {[%clk 0:02:17]} 21. Qxc2 {[%clk 0:02:40]}  b5 {[%clk 0:02:16]} 22. Qc7 {[%clk 0:02:36]}  Nb6 {[%clk 0:02:16]} 23. Qxa7 {[%clk 0:02:29]}  Nc4 {[%clk 0:02:16]} 24. Qa6 {[%clk 0:02:27]}  Qd7 {[%clk 0:02:15]} 25. Bd3 {[%clk 0:02:21]}  h6 {[%clk 0:02:09]} 26. h3 {[%clk 0:01:26]}  Rc8 {[%clk 0:02:10]} 27. a4 {[%clk 0:01:03]}  Bxb4 {[%clk 0:01:38]} 28. axb5 {[%clk 0:00:56]}  Rc7 {[%clk 0:00:31]} 29. Bxc4 {[%clk 0:00:43]}  dxc4 {[%clk 0:00:29]} 30. b6 {[%clk 0:00:42]}  Rb7 {[%clk 0:00:24]} 31. Rxc4 {[%clk 0:00:37]}  Bf8 {[%clk 0:00:21]} 32. Rc7 {[%clk 0:00:25]}  Rxc7 {[%clk 0:00:21]} 33. bxc7 {[%clk 0:00:26]}  Qxc7 {[%clk 0:00:20]} 34. Qxe6+ {[%clk 0:00:26]}  Kh8 {[%clk 0:00:21]} 35. Qxf5 {[%clk 0:00:25]}  Qd8 {[%clk 0:00:19]} 36. d5 {[%clk 0:00:15]}  Kg8 {[%clk 0:00:20]} 37. d6 {[%clk 0:00:15]}  Bxd6 {[%clk 0:00:12]} 38. Qe6+ {[%clk 0:00:14]}  Kh7 {[%clk 0:00:11]} 39. exd6 {[%clk 0:00:13]}  Qa5 {[%clk 0:00:11]} 40. Kh2 {[%clk 0:00:12]}  Qa4 {[%clk 0:00:10]} 41. Qf5+ {[%clk 0:00:12]}  Kg8 {[%clk 0:00:10]} 42. Ne5 {[%clk 0:00:12]}  Qd4 {[%clk 0:00:09]} 43. d7 {[%clk 0:00:11]}  h5 {[%clk 0:00:08]} 44. Qf7+ {[%clk 0:00:11]}  Kh7 {[%clk 0:00:08]} 45. Qxh5+ {[%clk 0:00:12]}  Kg8 {[%clk 0:00:09]} 46. Qe8+ {[%clk 0:00:12]}  Kh7 {[%clk 0:00:09]} 47. Qg6+ {[%clk 0:00:11]}  Kg8 {[%clk 0:00:09]} 48. Qg4 {[%clk 0:00:08]}  Kf8 {[%clk 0:00:07]} 49. Nc6 {[%clk 0:00:05]}  Qd6 {[%clk 0:00:05]} 50. d8=Q+ {[%clk 0:00:05]}  Kf7 {[%clk 0:00:06]} 51. Qxd6 {[%clk 0:00:05]}  Kg8 {[%clk 0:00:06]} 52. Qd8+ {[%clk 0:00:04]}  Kf7 {[%clk 0:00:07]} 53. Qgd7+ {[%clk 0:00:03]}  Kg6 {[%clk 0:00:06]} 54. Qg5+ {[%clk 0:00:04]}  Kh7 {[%clk 0:00:05]} 55. Qdxg7# {[%clk 0:00:05]} 1-0


[Site "https://www.chess.com"]

[Event "Titled Tuesday Blitz February 14 Late 2023"]
[White "ArchibaldCerveza29"]
[Black "Fernandez, Maria Florencia"]
[BlackFideId "116459"]
[WhiteElo "2469"]
[BlackElo "2129"]
[Result "0-1"]
[Round "11"]
[TimeControl "180+2"]
[Date "2023.02.14"]
[WhiteClock "0:00:17"]
[BlackClock "0:00:06"]

1. e4 {[%clk 0:03:00]}  c5 {[%clk 0:02:53]} 2. Nf3 {[%clk 0:02:59]}  d6 {[%clk 0:02:50]} 3. d4 {[%clk 0:03:00]}  cxd4 {[%clk 0:02:51]} 4. Nxd4 {[%clk 0:03:01]}  Nf6 {[%clk 0:02:51]} 5. Nc3 {[%clk 0:03:01]}  g6 {[%clk 0:02:52]} 6. Be3 {[%clk 0:03:01]}  Bg7 {[%clk 0:02:52]} 7. f3 {[%clk 0:03:01]}  O-O {[%clk 0:02:52]} 8. Qd2 {[%clk 0:03:02]}  Nc6 {[%clk 0:02:52]} 9. O-O-O {[%clk 0:03:03]}  d5 {[%clk 0:02:52]} 10. Qe1 {[%clk 0:03:02]}  e5 {[%clk 0:02:40]} 11. Nxc6 {[%clk 0:03:03]}  bxc6 {[%clk 0:02:40]} 12. exd5 {[%clk 0:03:03]}  cxd5 {[%clk 0:02:40]} 13. Bg5 {[%clk 0:02:46]}  Qb6 {[%clk 0:02:10]} 14. Bxf6 {[%clk 0:02:41]}  Qxf6 {[%clk 0:02:06]} 15. Nxd5 {[%clk 0:02:40]}  Qg5+ {[%clk 0:01:59]} 16. Kb1 {[%clk 0:02:39]}  Rb8 {[%clk 0:01:43]} 17. h4 {[%clk 0:02:34]}  Qd8 {[%clk 0:01:32]} 18. c3 {[%clk 0:02:27]}  Be6 {[%clk 0:01:05]} 19. Nb4 {[%clk 0:02:16]}  Qa5 {[%clk 0:00:46]} 20. a3 {[%clk 0:02:07]}  Qb6 {[%clk 0:00:24]} 21. Ba6 {[%clk 0:01:48]}  Rfe8 {[%clk 0:00:15]} 22. Qd2 {[%clk 0:01:40]}  Bf8 {[%clk 0:00:14]} 23. Be2 {[%clk 0:01:00]}  a5 {[%clk 0:00:13]} 24. Nd3 {[%clk 0:01:00]}  Bxa3 {[%clk 0:00:09]} 25. Ka1 {[%clk 0:00:57]}  Qb3 {[%clk 0:00:04]} 26. Nb4 {[%clk 0:00:17]}  axb4 {[%clk 0:00:04]} 27. bxa3 {[%clk 0:00:17]}  Qxa3+ {[%clk 0:00:03]} 28. Kb1 {[%clk 0:00:17]}  bxc3+ {[%clk 0:00:03]} 29. Kc2 {[%clk 0:00:18]}  cxd2 {[%clk 0:00:03]} 30. Kxd2 {[%clk 0:00:19]}  Rb2+ {[%clk 0:00:03]} 31. Ke1 {[%clk 0:00:19]}  Qc3+ {[%clk 0:00:04]} 32. Kf1 {[%clk 0:00:20]}  Qe3 {[%clk 0:00:04]} 33. Re1 {[%clk 0:00:19]}  Bb3 {[%clk 0:00:04]} 34. Rh3 {[%clk 0:00:17]}  Rxe2 {[%clk 0:00:04]} 35. Rxe2 {[%clk 0:00:16]}  Bc4 {[%clk 0:00:04]} 36. f4 {[%clk 0:00:16]}  Qxe2+ {[%clk 0:00:05]} 37. Kg1 {[%clk 0:00:17]}  exf4 {[%clk 0:00:05]} 38. h5 {[%clk 0:00:16]}  Qe3+ {[%clk 0:00:05]} 39. Kh2 {[%clk 0:00:15]}  Qxh3+ {[%clk 0:00:04]} 40. Kxh3 {[%clk 0:00:16]}  gxh5 {[%clk 0:00:05]} 41. g4 {[%clk 0:00:15]}  hxg4+ {[%clk 0:00:05]} 42. Kh4 {[%clk 0:00:15]}  f3 {[%clk 0:00:05]} 43. Kg5 {[%clk 0:00:15]}  f2 {[%clk 0:00:05]} 44. Kh6 {[%clk 0:00:15]}  f1=Q {[%clk 0:00:05]} 45. Kg5 {[%clk 0:00:16]}  Qc1+ {[%clk 0:00:06]} 46. Kf6 {[%clk 0:00:15]}  Re6+ {[%clk 0:00:06]} 47. Kf5 {[%clk 0:00:16]}  Qf1+ {[%clk 0:00:06]} 48. Kg5 {[%clk 0:00:15]}  Qf6+ {[%clk 0:00:06]} 49. Kh5 {[%clk 0:00:15]}  Re5+ {[%clk 0:00:06]} 50. Kxg4 {[%clk 0:00:15]}  Be6+ {[%clk 0:00:06]} 51. Kg3 {[%clk 0:00:15]}  Qg5+ {[%clk 0:00:06]} 52. Kh2 {[%clk 0:00:16]}  Re2+ {[%clk 0:00:06]} 53. Kh1 {[%clk 0:00:17]}  Bd5# {[%clk 0:00:06]} 0-1


[Site "https://www.chess.com"]

[Event "Titled Tuesday Blitz February 14 Late 2023"]
[White "Kalajzic, Ivan"]
[Black "Seletsky, Grigory"]
[WhiteFideId "14506378"]
[BlackFideId "14112191"]
[WhiteElo "2062"]
[BlackElo "2259"]
[Result "1-0"]
[Round "11"]
[TimeControl "180+2"]
[Date "2023.02.14"]
[WhiteClock "0:00:21"]
[BlackClock "0:00:39"]

1. c4 {[%clk 0:02:59]}  e5 {[%clk 0:02:57]} 2. Nc3 {[%clk 0:02:59]}  Nc6 {[%clk 0:02:58]} 3. g3 {[%clk 0:02:58]}  f5 {[%clk 0:02:58]} 4. Bg2 {[%clk 0:02:58]}  Nf6 {[%clk 0:02:59]} 5. d3 {[%clk 0:02:58]}  Bb4 {[%clk 0:02:59]} 6. Bd2 {[%clk 0:02:49]}  Bxc3 {[%clk 0:02:55]} 7. Bxc3 {[%clk 0:02:49]}  d6 {[%clk 0:02:56]} 8. e3 {[%clk 0:02:46]}  O-O {[%clk 0:02:56]} 9. Ne2 {[%clk 0:02:46]}  Qe8 {[%clk 0:02:54]} 10. b4 {[%clk 0:02:43]}  Qh5 {[%clk 0:02:54]} 11. b5 {[%clk 0:02:43]}  Nd8 {[%clk 0:02:48]} 12. Ng1 {[%clk 0:02:33]}  Qg6 {[%clk 0:02:47]} 13. Nf3 {[%clk 0:02:31]}  Nf7 {[%clk 0:02:44]} 14. Nh4 {[%clk 0:02:27]}  Qh6 {[%clk 0:02:42]} 15. Bd2 {[%clk 0:02:24]}  g5 {[%clk 0:02:41]} 16. e4 {[%clk 0:02:13]}  f4 {[%clk 0:02:39]} 17. Nf5 {[%clk 0:02:09]}  Bxf5 {[%clk 0:02:37]} 18. exf5 {[%clk 0:02:10]}  b6 {[%clk 0:02:19]} 19. h4 {[%clk 0:02:06]}  g4 {[%clk 0:02:15]} 20. Qe2 {[%clk 0:01:38]}  Rae8 {[%clk 0:02:09]} 21. O-O-O {[%clk 0:01:34]}  Qh5 {[%clk 0:02:03]} 22. Be4 {[%clk 0:01:27]}  f3 {[%clk 0:02:02]} 23. Qe3 {[%clk 0:01:25]}  Nd7 {[%clk 0:01:43]} 24. Rhe1 {[%clk 0:01:11]}  Nc5 {[%clk 0:01:42]} 25. Bb4 {[%clk 0:01:01]}  Kh8 {[%clk 0:01:38]} 26. Bxc5 {[%clk 0:01:01]}  bxc5 {[%clk 0:01:36]} 27. Rd2 {[%clk 0:00:57]}  Nh6 {[%clk 0:01:34]} 28. Qg5 {[%clk 0:00:44]}  Qxg5 {[%clk 0:01:33]} 29. hxg5 {[%clk 0:00:45]}  Nxf5 {[%clk 0:01:33]} 30. Rh1 {[%clk 0:00:41]}  Kg7 {[%clk 0:01:32]} 31. Rdd1 {[%clk 0:00:29]}  Re7 {[%clk 0:01:18]} 32. Rh5 {[%clk 0:00:28]}  Kg8 {[%clk 0:00:51]} 33. Rdh1 {[%clk 0:00:28]}  Rg7 {[%clk 0:00:51]} 34. Bd5+ {[%clk 0:00:20]}  Kh8 {[%clk 0:00:51]} 35. g6 {[%clk 0:00:20]}  h6 {[%clk 0:00:43]} 36. Rxh6+ {[%clk 0:00:20]}  Nxh6 {[%clk 0:00:39]} 37. Rxh6+ {[%clk 0:00:21]} 1-0


[Site "https://www.chess.com"]

[Event "Titled Tuesday Blitz February 14 Late 2023"]
[White "Gonzalez, Francisco Silva"]
[Black "Forgacs, Attila Jr."]
[WhiteFideId "1512285"]
[BlackFideId "773654"]
[WhiteElo "2021"]
[BlackElo "2264"]
[Result "1-0"]
[Round "11"]
[TimeControl "180+2"]
[Date "2023.02.14"]
[WhiteClock "0:00:28"]
[BlackClock "0:00:01"]

1. d4 {[%clk 0:02:56]}  Nf6 {[%clk 0:02:59]} 2. c4 {[%clk 0:02:55]}  g6 {[%clk 0:02:59]} 3. Nc3 {[%clk 0:02:55]}  d5 {[%clk 0:02:59]} 4. Bf4 {[%clk 0:02:54]}  Bg7 {[%clk 0:02:48]} 5. Nf3 {[%clk 0:02:55]}  O-O {[%clk 0:02:47]} 6. e3 {[%clk 0:02:54]}  c5 {[%clk 0:02:46]} 7. dxc5 {[%clk 0:02:53]}  Qa5 {[%clk 0:02:39]} 8. Rc1 {[%clk 0:02:52]}  dxc4 {[%clk 0:02:30]} 9. Bxc4 {[%clk 0:02:52]}  Qxc5 {[%clk 0:02:30]} 10. Bb3 {[%clk 0:02:52]}  Qa5 {[%clk 0:02:30]} 11. O-O {[%clk 0:02:53]}  Nc6 {[%clk 0:02:29]} 12. h3 {[%clk 0:02:53]}  Rd8 {[%clk 0:02:24]} 13. Qe2 {[%clk 0:02:53]}  Bf5 {[%clk 0:02:23]} 14. e4 {[%clk 0:02:54]}  Bd7 {[%clk 0:02:10]} 15. Nd5 {[%clk 0:02:53]}  Rac8 {[%clk 0:01:48]} 16. Rxc6 {[%clk 0:02:50]}  Bxc6 {[%clk 0:01:46]} 17. Nxe7+ {[%clk 0:02:50]}  Kf8 {[%clk 0:01:39]} 18. Nxc8 {[%clk 0:02:42]}  Rxc8 {[%clk 0:01:39]} 19. Bd6+ {[%clk 0:02:36]}  Kg8 {[%clk 0:01:39]} 20. Qc4 {[%clk 0:02:27]}  Nxe4 {[%clk 0:01:08]} 21. Qxf7+ {[%clk 0:02:24]}  Kh8 {[%clk 0:01:09]} 22. Bf4 {[%clk 0:01:41]}  Rf8 {[%clk 0:01:02]} 23. Ne5 {[%clk 0:01:35]}  Rxf7 {[%clk 0:00:50]} 24. Nxf7+ {[%clk 0:01:35]}  Kg8 {[%clk 0:00:51]} 25. Rd1 {[%clk 0:01:30]}  Kf8 {[%clk 0:00:27]} 26. f3 {[%clk 0:01:10]}  Bf6 {[%clk 0:00:20]} 27. fxe4 {[%clk 0:01:08]}  Bxe4 {[%clk 0:00:20]} 28. Bh6+ {[%clk 0:01:01]}  Ke7 {[%clk 0:00:18]} 29. Nd6 {[%clk 0:00:58]}  Qc5+ {[%clk 0:00:11]} 30. Kh1 {[%clk 0:00:57]}  Qf2 {[%clk 0:00:09]} 31. Nxe4 {[%clk 0:00:55]}  Qe2 {[%clk 0:00:06]} 32. Ng3 {[%clk 0:00:45]}  Qe5 {[%clk 0:00:03]} 33. Nf1 {[%clk 0:00:39]}  Qc5 {[%clk 0:00:02]} 34. Be3 {[%clk 0:00:36]}  Qa5 {[%clk 0:00:01]} 35. Nd2 {[%clk 0:00:34]}  Be5 {[%clk 0:00:01]} 36. Nc4 {[%clk 0:00:33]}  Qb5 {[%clk 0:00:01]} 37. Bxa7 {[%clk 0:00:28]} 1-0


[Site "https://www.chess.com"]